Cogmind - Beta 16.1 @@@ ROGUE MODE // 2026.03.21 @ 17:52:55 Player: APerTAS Result: Destroyed by Y-45 Defender with Heavy Assault Rifle Performance ------------- Evolutions (2) 1000 Regions Visited (3) 600 Robots Destroyed (0) 0 Value Destroyed (0) 0 Prototype IDs (0) 0 Alien Tech Used (0) 0 Bonus (470) 470 TOTAL SCORE: 2070 Bonus ------- Pacifist 470 Cogmind --------- Core Integrity 0/550 Matter 300/300 Energy 99/100 System Corruption 0% Temperature Cool (9) Movement Core (50) Location -8/Materials Parts ------- > --- POWER (1) -------- (None) > --- PROPULSION (2) --- (None) > --- UTILITY (2) ------ (None) > --- WEAPON (6) ------- (None) > --- INVENTORY (5) ---- (None) Peak State ------------ None Favorites ----------- Power None Propulsion None Utility None Weapon None Build | -11 -10 -9 -8 ------- Run | Yrd Mat Mat Mat Slots Evolved 4 | . . 2 2 Power . | . . . . Propulsion . | . . . . Utility . | . . . . Weapon 4 | . . 2 2 Parts Attached . | . . . . Power . | . . . . Engine . | . . . . Core . | . . . . Reactor . | . . . . Propulsion . | . . . . Treads . | . . . . Leg . | . . . . Wheel . | . . . . Hover . | . . . . Flight . | . . . . Utility . | . . . . Device . | . . . . Storage . | . . . . Processor . | . . . . Hackware . | . . . . Protection . | . . . . Artifact . | . . . . Weapon . | . . . . Energy Gun . | . . . . Energy Cannon . | . . . . Ballistic Gun . | . . . . Ballistic Cannon . | . . . . Launcher . | . . . . Special Weapon . | . . . . Impact Weapon . | . . . . Slashing Weapon . | . . . . Piercing Weapon . | . . . . Special Melee Weapon . | . . . . Unidentified Prototypes . | . . . . Parts Lost . | . . . . Power . | . . . . Propulsion . | . . . . Utility . | . . . . Weapon . | . . . . Highest Loss Streak . | . . . . To Critical Strikes . | . . . . Average Backups . | . . . . Power . | . . . . Propulsion . | . . . . Utility . | . . . . Weapon . | . . . . Tool/Special . | . . . . Unused Backups . | . . . . Power . | . . . . Propulsion . | . . . . Utility . | . . . . Weapon . | . . . . Tool/Special . | . . . . Average Slot Usage (%) . | . . . . Peak Build Rating . | . . . . Average Rating . | . . . . On Entrance . | . . . . Avg Prop Armor Cover (%) . | . . . . Naked Turns 119 | . 37 48 34 Heaviest Build . | . . . . Greatest Support 3 | 3 3 3 3 Greatest Overweight (x) . | . . . . Average Overweight (x) . | . . . . Largest Inventory Capacity 5 | 5 5 5 5 Average Capacity 5 | 5 5 5 5 Most Carried . | . . . . Average Carried . | . . . . Final Capacity 5 | 5 5 5 5 Final Carried . | . . . . Class Distribution -------------------- 100% | Mutant Dominant Class ---------------- Mutant | -10/Materials Mutant | -9/Materials Mutant | -8/Materials Resources | -11 -10 -9 -8 ----------- Run | Yrd Mat Mat Mat Matter Collected 167 | 151 . . 16 Remotely . | . . . . Salvage Created . | . . . . Parts . | . . . . Haulers Intercepted . | . . . . Recyclers Shooed . | . . . . Parts Field Recycled . | . . . . Retrieved Matter . | . . . . Parts Self-Destructed . | . . . . Prevented . | . . . . Parts Restored . | . . . . Kills | -11 -10 -9 -8 ------- Run | Yrd Mat Mat Mat Combat Hostiles Destroyed . | . . . . Classes Destroyed . | . . . . Best Kill Streak . | . . . . Combat Bots Only . | . . . . Max Kills in Single Turn . | . . . . Gunslinging . | . . . . Exploded . | . . . . Melee . | . . . . Uniques/NPCs Destroyed . | . . . . Combat | -11 -10 -9 -8 -------- Run | Yrd Mat Mat Mat Hostile Shots Fired 100 | . 13 38 49 Missed 37 | . 8 15 14 Hits 63 | . 5 23 35 Melee 7 | . . . 7 Projectile 56 | . 5 23 28 Critical Strikes 2 | . . . 2 Damage Taken 860 | . 62 235 563 Core 860 | . 62 235 563 Absorbed by Shields . | . . . . Core Remaining (%) 72 | 100 75 41 . Volleys Fired . | . . . . Largest . | . . . . Hottest . | . . . . Shots Fired . | . . . . Gun . | . . . . Cannon . | . . . . Launcher . | . . . . Special . | . . . . Kinetic . | . . . . Thermal . | . . . . Explosive . | . . . . Electromagnetic . | . . . . Robot Hit Streak . | . . . . Robot Miss Streak . | . . . . Penetration Max . | . . . . Secondary Targets . | . . . . Shots Hit Robots . | . . . . Core Hits 2 | . 1 . 1 Critical Kills . | . . . . Critical Parts Destroyed . | . . . . Critical Strikes . | . . . . Melee Attacks . | . . . . Impact . | . . . . Slashing . | . . . . Piercing . | . . . . Sneak Attacks . | . . . . Combat Hostiles . | . . . . Follow-up Attacks . | . . . . Damage Inflicted 73 | . 16 25 32 Guns . | . . . . Cannons . | . . . . Explosions . | . . . . Melee . | . . . . Ramming 73 | . 16 25 32 Kinetic . | . . . . Thermal . | . . . . Explosive . | . . . . Electromagnetic . | . . . . Impact . | . . . . Slashing . | . . . . Piercing . | . . . . Highest Corruption 1 | . . 1 . Average Corruption 1 | . . 1 . Corruption Purged . | . . . . Corruption Blocked . | . . . . Overload Shots . | . . . . Overflow Damage . | . . . . Projectiles . | . . . . Explosions . | . . . . Melee . | . . . . Knockbacks 1 | . 1 . . Impact 1 | . 1 . . Kinetic . | . . . . Secondary . | . . . . Self-Inflicted Damage 34 | . 7 12 15 Shots . | . . . . Rammed 12 | . 2 5 5 Targets Rammed 12 | . 2 5 5 Kicked . | . . . . Crushed . | . . . . Highest Temperature . | . . . . Average Temperature . | . . . . Received Heat Transfer 135 | . 30 69 36 Siege Activations . | . . . . Martial Activations . | . . . . Shielding Activations . | . . . . Robots Disrupted . | . . . . Combat Hostiles . | . . . . Robots Corrupted . | . . . . Combat Hostiles . | . . . . Parts Fried . | . . . . Impact Corruptions . | . . . . Robots Melted . | . . . . Combat Hostiles . | . . . . Parts Melted . | . . . . Heat Transferred . | . . . . Parts Sabotaged . | . . . . Parts Stolen . | . . . . Parts Stripped . | . . . . Power Chain Reactions . | . . . . Alert | -11 -10 -9 -8 ------- Run | Yrd Mat Mat Mat Maximum Alert Level . | . . . . Low Security (%) 100 | 100 100 100 100 Level 1 . | . . . . Level 2 . | . . . . Level 3 . | . . . . Level 4 . | . . . . Level 5 . | . . . . High Security . | . . . . Max Security . | . . . . Peak Influence 80 | . . 80 33 Initial 33 | . . . 33 Average 15 | . . 22 28 Influence Increases 90 | . . 90 . Lose Combat Pursuer 90 | . . 90 . Influence Decreases 67 | . . 10 57 Entered New Map 47 | . . . 47 Time Decay 20 | . . 10 10 Squads Dispatched 5 | . 1 1 3 Investigation 3 | . 1 1 1 Extermination . | . . . . Reinforcement 2 | . . . 2 Assault . | . . . . Garrison . | . . . . Intercept . | . . . . Searches Triggered . | . . . . Construction Impeded . | . . . . Haulers Reinforced . | . . . . Active Scanning Responses . | . . . . Cargo Convoy Interrupts . | . . . . Stealth | -11 -10 -9 -8 --------- Run | Yrd Mat Mat Mat Distress Signals . | . . . . Communications Jammed . | . . . . Distress Signals . | . . . . Times Spotted 32 | . 5 14 13 Peak Tracking Total 11 | . 4 9 11 Tactical Retreats 2 | . . 2 . Traps | -11 -10 -9 -8 ------- Run | Yrd Mat Mat Mat Traps Triggered 2 | . . 1 1 Indirectly . | . . . . Trap Hack Attempts . | . . . . Triggered . | . . . . Disarmed . | . . . . Reprogrammed . | . . . . Reused . | . . . . Traps Extracted . | . . . . Installed . | . . . . Triggered . | . . . . Machines | -11 -10 -9 -8 ---------- Run | Yrd Mat Mat Mat Machines Disabled . | . . . . Max in Single Turn . | . . . . Machines Repaired . | . . . . Machines Dismantled . | . . . . Machines Sabotaged . | . . . . Overloaded Fab Kills . | . . . . Hacking | -11 -10 -9 -8 --------- Run | Yrd Mat Mat Mat Machines Accessed 2 | . 1 1 . Terminals 2 | . 1 1 . Fabricators . | . . . . Repair Stations . | . . . . Recycling Units . | . . . . Scanalyzers . | . . . . Garrison Access . | . . . . Total Hacks 3 | . 2 1 . Successful 2 | . 1 1 . Failed 1 | . 1 . . Catastrophic . | . . . . Database Lockouts . | . . . . Manual 3 | . 2 1 . Terminals 3 | . 2 1 . Fabricators . | . . . . Repair Stations . | . . . . Recycling Units . | . . . . Scanalyzers . | . . . . Garrison Access . | . . . . Terminal Hacks . | . . . . Fabricator Hacks . | . . . . Repair Station Hacks . | . . . . Recycling Unit Hacks . | . . . . Scanalyzer . | . . . . Garrison Access Hacks . | . . . . Unauthorized Hacks 2 | . 1 1 . Terminals 2 | . 1 1 . Sabotage 2 | . 1 1 . Fabricators . | . . . . Repair Stations . | . . . . Recycling Units . | . . . . Scanalyzers . | . . . . Garrison Access . | . . . . Data Cores Recovered . | . . . . Used . | . . . . Hacking Detections . | . . . . Full Trace Events . | . . . . Feedback Events . | . . . . Feedback Blocked . | . . . . Robot Schematics Acquired . | . . . . Robots Built . | . . . . Authchips . | . . . . Time . | . . . . Total Robot Build Rating . | . . . . Part Schematics Acquired . | . . . . Parts Built . | . . . . Authchips . | . . . . Time . | . . . . Total Part Build Rating . | . . . . Part Studies Acquired . | . . . . Parts Repaired . | . . . . Time . | . . . . Parts Recycled . | . . . . Recycled Matter . | . . . . Retrieved Matter . | . . . . Retrieved Components . | . . . . Parts Scanalyzed . | . . . . Part Schematics Acquired . | . . . . Parts Damaged . | . . . . Bothacking | -11 -10 -9 -8 ------------ Run | Yrd Mat Mat Mat Used RIF Installer . | . . . . Robots Hacked . | . . . . Non-combat . | . . . . Combat . | . . . . Robot Hacks Applied . | . . . . Relay Couplers Released . | . . . . Fabnet Peak Effective % . | . . . . Robots Rewired . | . . . . Allies Hacked . | . . . . Hacks Repelled . | . . . . Allies | -11 -10 -9 -8 -------- Run | Yrd Mat Mat Mat Total Allies . | . . . . Largest Group . | . . . . Highest-Rated Group . | . . . . Highest-Rated Ally . | . . . . Total Orders . | . . . . Ally Attacks . | . . . . Total Damage . | . . . . Kills . | . . . . Allies Corrupted . | . . . . Allies Melted . | . . . . Intel | -11 -10 -9 -8 ------- Run | Yrd Mat Mat Mat Active Infowar (turns) . | . . . . Robot Analysis Total . | . . . . Derelict Logs Recovered . | . . . . Drone Launches . | . . . . Drone Recoveries . | . . . . Exploration | -11 -10 -9 -8 ------------- Run | Yrd Mat Mat Mat Turns Passed 128 | 9 37 48 34 Spaces Moved 230 | 18 69 86 57 Core 230 | 18 69 86 57 Treads . | . . . . Legs . | . . . . Wheels . | . . . . Hover . | . . . . Flight . | . . . . Fastest Speed 50 | 50 50 50 50 Average Speed 50 | 50 50 50 50 Slowest Speed 50 | 50 50 50 50 Overloaded Moves . | . . . . Propulsion Burnouts . | . . . . Robots Hopped . | . . . . Potential Cave-ins . | . . . . Cave-ins Triggered . | . . . . Exploration Rate (%) 13 | 3 24 16 11 Regions Visited 3 Branch Regions . Pre-discovered Areas . | . . . . Known Exits Taken . | . . . . Unknown Exits Taken 3 | 1 1 1 . Scrap Searched . | . . . . Spaces Dug . | . . . . Terrain Destroyed . | . . . . Melee . | . . . . Projectile . | . . . . AOE . | . . . . Terrain Rammed . | . . . . Walls Destroyed . | . . . . Machines Disabled . | . . . . Actions | -11 -10 -9 -8 --------- Run | Yrd Mat Mat Mat Total 239 | 17 70 90 62 Wait . | . . . . Move 227 | 17 68 85 57 Hop . | . . . . Pick Up . | . . . . Fast Attach . | . . . . Attach . | . . . . Detach . | . . . . Swap . | . . . . Drop . | . . . . Fire . | . . . . Melee . | . . . . Ram 12 | . 2 5 5 Kick . | . . . . Crush . | . . . . Escape Stasis . | . . . . Rewire . | . . . . Trap . | . . . . Miscellaneous . | . . . . Route ------- -11/Scrapyard -10/Materials -9/Materials -8/Materials History --------- Turn | Location | Event 3 | -11/Scrapyard | Discovered new exit (range 16) 10 | -11/Scrapyard | Entered Materials 38 | -10/Materials | Discovered new exit (range 15) 47 | -10/Materials | Entered another Materials area 47 | -9/Materials | Evolved 2 slots: Weapon x2 89 | -9/Materials | Discovered new exit (range 9) 94 | -9/Materials | Core integrity fell below 50% 95 | -9/Materials | Entered another Materials area 95 | -8/Materials | Evolved 2 slots: Weapon x2 120 | -8/Materials | Core integrity fell below 50% 126 | -8/Materials | Core integrity fell below 20% 129 | -8/Materials | Destroyed by Y-45 Defender with Heavy Assault Rifle Last Messages --------------- 00115_ Slammed into H-55 Commando. 00116_ Penetrated by Slug. 00118_ C-30 ARC bursts open, deploying its payload. 00118_ S-10 Pest unfolds itself. 00118_ K-01 Serf collects debris. 00118_ O-16 Technician uses terminal to summon reinforcements. 00118_ ALERT: Hostiles spotted, dispatching reinforcements to Terminal M010. 00118_ O-16 Technician locks terminal. 00121_ K-01 Serf collects debris. 00123_ Slammed into S-10 Pest. 00125_ Acquired 11 matter. 00125_ K-01 Serf collects debris. 00127_ Slammed into U-05 Engineer. 00127_ Destabilizing: Core damaged (-5). 00128_ Slammed into U-05 Engineer. 00128_ K-01 Serf collects debris. 00129_ Triggered Alarm Trap. 00129_ An alarm sounds. 00129_ ALERT: Alarm triggered, dispatching investigation squad. Map ----- +----------------------------------------------------+ | ?????# #???????# #???????????????????????????? | | ????## ##?????## ##????????#?????????????????? | | ????# [ ####### ####### ?????????????????? | | ????# "??????????????????? | | ????# " T ?????????????????? | | ????#! % ?????????????????? | | ????# % ####### #####??????????????????????? | | ????########?# ?#" ##??????????????????????????? | | ???????? ? ?# #???????????????????????????? | | ????????""" ?# #???????????????????????????? | | ????????"R # #???????????????????????????? | | ????????""" %= # H #???????????????????????????? | | ???????# == + ##??????????????????????????? | | ???????# = # T#??????????????????????????? | | ???????# # ##??????????????????????????? | | ???????# ? ?# #???????????????????????????? | | ?????????######??# ######??????????????????????? | | ?????????????????# ##] #??????????????????????? | | ?????????????????# ## #??????????????????????? | | ?????????????????# ## ! #??????????????????????? | | ?????????????????# ## #??????????????????????? | | ?????????????????# ## #??????????????????????? | | ?????????????????# #? #??????????????????????? | | ?????????????????# #? #???? ##???????????????? | | ?????????????????#s% ###+### ]#???????????????? | | ?????????????##### k cc%@ #???????????????? | | ????????# k scs Y #???????????????? | | ??????? ##### uu #???????????????? | | ?????? ?????????#######+### #???????????????? | | ????????????????????????????# ##???????????????? | | ????????????????????????????? #????????????????? | | ?????????????????????????????? #????????????????? | | ??????????????????????????????? ???????????????? | | ???????????????????????????????? ??????????????? | | ????????????????????????????????? ?????????????? | | ?????????????????????????????????? ????????????? | | ??????????????????????????????????? ????????????? | | ?????????????????????????????????????????????????? | | ?????????????????????????????????????????????????? | | ?????????????????????????????????????????????????? | | ?????????????????????????????????????????????????? | | ?????????????????????????????????????????????????? | | ?????????????????????????????????????????????????? | | ?????????????????????????????????????????????????? | | ?????????????????????????????????????????????????? | | ?????????????????????????????????????????????????? | | ?????????????????????????????????????????????????? | | ?????????????????????????????????????????????????? | | ?????????????????????????????????????????????????? | | ?????????????????????????????????????????????????? | +----------------------------------------------------+ Best States ------------- Heat Dissipation 31 Energy Generation 5 Energy Capacity 100 Matter Stores 282 Matter Capacity 300 Sight Range 16 Terrain Scan Density 10 Evasion (%) 50 Item Schematics ----------------- None Robot Schematics ------------------ None Fabricated ------------ Nothing Repaired ---------- Nothing Studied --------- None Alien Tech Used ----------------- None Achievements -------------- None Challenges ------------ None Game ------ Seed TacticalTransportCape Manual? 0 Play Time 00:02:09 Cumulative 30.9 hours Start 2026.03.21 @ 17:51:18 End 2026.03.21 @ 17:52:55 Sessions 1 Manual Loads 0 Difficulty Rogue Special Mode None Game No. 135 Rogue 135 Adventurer 0 Explorer 0 Win Type - Total 0 Types 0/0/0/0/0/0/0/0/0/0 Lore% 35 Gallery% 28 Achievement% 36 Wizard Run 0 Options --------- Layout 0 ASCII 0 Keyboard 0 Movement Arrows Keybinds 0 Fullscreen 2 Font 18/Terminus Map View 76x50 Zoom Use 0% Tactical HUD 1 Map Filters NONE Filters NONE Steam 1 RUN: 7729c45e-7d73-4723-ac23-3aa1256d87cd